bitfinex/quotes_ETHUSD_20250319
["timestamp","ask_amount","ask_price","bid_price","bid_amount"]
[1742411302073,4.94626,2052.3,2051.9,6.088]
[1742411302281,4.94626,2052.3,2052.0,0.8099]
[1742411302506,0.07352,2052.3,2052.0,0.8099]
[1742411302916,0.07352,2052.3,2052.0,1.53593836]
[1742411303983,0.07352,2052.3,2052.1,0.04872216]
[1742411304211,0.07352,2052.3,2052.0,7.77060688]
[1742411304415,0.07352,2052.3,2052.1,0.55]
[1742411304817,0.07352,2052.3,2052.1,0.59871526]
[1742411305114,0.07352,2052.3,2052.2,0.83693221]
[1742411306087,0.07352,2052.3,2052.0,1.53593836]
[1742411306591,0.07352,2052.3,2052.0,1.58465828]
[1742411306798,0.07352,2052.3,2052.0,1.53593836]
[1742411307125,0.07352,2052.3,2052.0,0.8099]
[1742411309286,0.07352,2052.3,2052.1,0.04871693]
[1742411309486,0.07352,2052.3,2052.0,3.56958693]
[1742411310017,4.9914007,2053.5,2052.2,6.23466852]
[1742411310191,4.87022,2053.3,2052.3,0.04870345]
[1742411310389,4.87015,2053.4,2052.5,3.0]
[1742411310390,4.87088,2053.1,2052.5,3.0]
[1742411310685,9.74132,2053.2,2052.5,6.083]
[1742411310910,4.87065,2053.2,2052.5,6.083]
[1742411311287,4.87048,2053.2,2052.5,6.083]
[1742411311495,5.6686,2053.4,2052.6,0.04870824]
[1742411311714,5.93600807,2053.4,2052.6,0.61317082]
[1742411311915,4.87,2053.4,2052.6,0.61317082]
[1742411312241,4.9914207,2053.5,2052.7,0.04870344]
[1742411312438,9.8613607,2053.5,2052.7,0.04870344]
[1742411312605,9.8612907,2053.5,2052.8,0.7668]
[1742411312805,4.9914207,2053.5,2052.8,1.56254829]
[1742411313006,4.87008,2053.4,2052.8,1.56254829]
[1742411313428,4.9914207,2053.5,2052.8,1.6112504]
[1742411313605,4.9914607,2053.5,2052.8,1.56254829]
[1742411313806,0.1216307,2053.5,2052.8,1.12455121]
[1742411314045,4.87036,2053.3,2052.8,1.12455121]
[1742411314256,4.87102,2053.0,2052.8,0.35775121]
[1742411314431,0.1216307,2053.5,2052.7,6.082]
[1742411314602,4.86997,2053.4,2052.7,6.082]
[1742411314805,4.87039,2053.3,2052.7,6.082]
[1742411315006,0.1216307,2053.5,2052.7,6.43938514]
[1742411315007,4.9913707,2053.5,2052.7,6.43938514]
[1742411315239,0.1216307,2053.5,2052.7,6.43938514]
[1742411315559,0.04871709,2053.4,2052.8,6.081]
[1742411315751,4.87053,2053.2,2052.8,6.081]
[1742411315908,9.74263,2052.9,2052.4,0.823]
[1742411316108,6.115753,2053.1,2052.4,0.823]
[1742411316409,1.244853,2053.1,2052.4,0.823]
[1742411316717,4.87047,2053.2,2052.4,0.823]
[1742411317652,4.87074,2053.1,2052.4,0.823]
[1742411317890,0.04871709,2053.0,2052.4,0.823]
[1742411318064,0.04871709,2053.3,2052.4,0.823]
[1742411318349,4.87101,2053.0,2052.4,1.18936247]
[1742411318507,5.845177,2053.0,2052.4,1.18936247]
[1742411319146,0.974167,2053.0,2052.4,1.18936247]
[1742411319351,4.87079,2053.1,2052.4,1.18936247]
[1742411319544,4.87079,2053.1,2052.4,0.36636247]
[1742411319545,4.8716,2052.8,2052.4,0.36636247]
[1742411319713,4.87125,2052.9,2052.4,0.36636247]
[1742411320040,9.74261,2052.9,2052.3,6.8822]
[1742411320248,4.8714,2052.8,2052.3,6.8812]
[1742411320447,5.845521,2052.9,2052.3,6.8812]
[1742411320620,4.87127,2052.9,2052.3,6.8812]
[1742411320822,4.87148,2052.8,2052.3,6.8812]
[1742411321053,0.7619,2053.4,2052.3,6.8812]
[1742411321054,4.87044,2053.2,2052.3,7.23863216]
[1742411321236,4.87163,2052.7,2052.3,6.43643216]
[1742411321641,4.87102,2053.0,2052.4,0.7956]
[1742411321942,5.358122,2053.0,2052.4,0.7956]
[1742411322142,4.87024,2053.3,2052.5,0.04871631]
[1742411322455,0.8013,2053.4,2052.4,0.7956]
[1742411322657,4.87074,2053.1,2052.4,0.7956]
[1742411322863,0.55,2053.3,2052.4,0.7956]
[1742411323152,4.8717,2052.7,2052.3,0.35743216]
[1742411323552,4.87187,2052.6,2052.0,6.8542]
[1742411324053,4.87158,2052.8,2052.0,6.8542]
[1742411324214,9.74316,2052.8,2052.0,6.8542]
[1742411324855,9.74313,2052.8,2052.1,6.078]
[1742411325155,9.74315,2052.8,2052.1,7.42622499]
[1742411325573,4.87121,2052.9,2052.1,7.42622499]
[1742411325862,0.8167,2053.1,2052.1,7.42622499]
[1742411326163,4.87125,2052.9,2052.2,3.0]
[1742411326357,4.87125,2052.9,2052.1,7.42622499]
[1742411326682,4.87096,2053.0,2052.2,0.8201425]
[1742411326823,0.9229307,2053.5,2052.3,0.8003]
[1742411327025,0.9229307,2053.5,2052.4,0.04871475]
[1742411327225,9.74159,2053.1,2052.3,0.8003]
[1742411327421,9.74209,2053.0,2052.3,0.8003]
[1742411327636,4.87074,2053.1,2052.3,0.8003]
[1742411327853,4.87147,2052.8,2052.3,0.8003]
[1742411328363,4.87022,2053.3,2052.3,1.60643475]
[1742411328660,6.3428207,2053.5,2052.3,1.60643475]
[1742411328661,4.87103,2053.0,2052.3,1.60643475]
[1742411329079,9.74212,2053.0,2052.3,1.60643475]
[1742411329236,9.74214,2053.0,2052.3,1.60643475]
[1742411329440,4.87053,2053.2,2052.3,1.60643475]
[1742411329635,4.87081,2053.1,2052.3,1.60643475]
[1742411329956,5.844564,2053.2,2052.3,1.60643475]
[1742411330263,4.8707,2053.1,2052.3,1.60643475]
[1742411330660,4.87049,2053.2,2052.3,1.60643475]
[1742411331170,0.1216307,2053.5,2052.8,0.7525]
[1742411331347,0.1216307,2053.5,2052.9,6.52341408]
[1742411331549,0.1216307,2053.5,2052.9,6.47471685]
[1742411332594,0.1216307,2053.5,2053.1,0.7803]
[1742411333491,0.1216307,2053.5,2053.2,6.06]
[1742411333672,4.9914507,2053.5,2053.2,6.06]
[1742411333843,0.1216307,2053.5,2053.2,6.06]
[1742411334186,0.1216307,2053.5,2053.2,6.79272844]
[1742411334351,0.1216307,2053.5,2053.2,6.74403]
[1742411334557,4.87006,2053.4,2053.2,6.06]
[1742411334977,0.1216307,2053.5,2053.2,6.06]
[1742411335347,0.1216307,2053.5,2053.2,6.43412152]
[1742411336084,0.1216307,2053.5,2053.3,6.06]
[1742411336383,0.1216307,2053.5,2053.4,12.134]
[1742411336584,0.1216307,2053.5,2053.4,6.06]
[1742411338859,4.9913607,2053.5,2053.4,6.06]
[1742411339983,0.1216307,2053.5,2053.4,6.06]
[1742411340409,4.86864,2054.0,2053.5,6.7426693]
[1742411340906,0.016,2054.4,2053.5,9.04613623]
[1742411341308,4.86824,2054.2,2053.5,9.04613623]
[1742411341509,4.86786,2054.3,2053.5,9.04613623]
[1742411341696,0.016,2054.4,2053.7,4.03896852]
[1742411342009,0.016,2054.4,2053.8,0.8043]
[1742411342010,4.88378,2054.4,2053.8,0.8043]
[1742411342176,4.88378,2054.4,2053.9,6.072]
[1742411342379,4.8682,2054.2,2053.9,6.072]
[1742411342720,4.86817,2054.2,2053.9,12.0103693]
[1742411342892,4.86848,2054.1,2053.9,12.0103693]
[1742411343092,4.86854,2054.0,2053.9,12.0103693]
[1742411343473,9.73698,2054.1,2053.9,12.0103693]
[1742411343678,9.73697,2054.1,2053.9,12.0103693]
[1742411343877,4.86809,2054.2,2053.9,12.0103693]
[1742411344703,4.86784,2054.3,2053.9,12.0103693]
[1742411344907,4.86851,2054.1,2053.9,12.0103693]
[1742411345183,4.86854,2054.0,2053.9,5.9383693]
[1742411345516,5.842245,2054.0,2053.9,5.9383693]
[1742411346015,4.86854,2054.0,2053.9,5.9383693]
[1742411346200,4.86815,2054.2,2053.9,5.9383693]
[1742411346601,4.86807,2054.3,2053.9,5.9383693]
[1742411346819,4.8836,2054.4,2054.0,5.9383693]
[1742411346994,4.8836,2054.4,2054.1,5.9383693]
[1742411346995,0.016,2054.4,2054.1,5.9383693]
[1742411347200,0.016,2054.4,2054.2,0.67034693]
[1742411347532,0.016,2054.4,2054.1,5.9383693]
[1742411347828,0.016,2054.4,2054.3,3.11218112]
[1742411348002,0.016,2054.4,2054.2,5.9383693]
[1742411348797,0.016,2054.4,2054.3,9.95268112]
[1742411349005,0.016,2054.4,2054.3,15.89105042]
[1742411349206,0.016,2054.4,2054.3,17.48015546]
[1742411349740,4.86599,2055.1,2054.4,5.9223693]
[1742411349910,4.86558,2055.3,2054.7,3.11218112]
[1742411350099,0.7705,2055.4,2054.5,20.02705042]
[1742411350299,4.86577,2055.2,2054.5,20.02705042]
[1742411350501,4.86577,2055.2,2054.7,3.11218112]
[1742411350720,4.86555,2055.3,2054.7,3.11218112]
[1742411350923,4.86584,2055.2,2054.7,3.11218112]
[1742411351132,4.86614,2055.1,2054.6,2.03907065]
[1742411351300,5.6358,2055.4,2054.6,2.03907065]
[1742411351301,4.86573,2055.2,2054.6,2.03907065]
[1742411351645,5.63574,2055.4,2054.5,16.9148693]
[1742411351797,0.7705,2055.4,2054.5,16.9148693]
[1742411352001,4.86604,2055.1,2054.5,16.9148693]
[1742411352198,4.86547,2055.3,2054.5,16.9148693]
[1742411352401,0.7705,2055.4,2054.5,16.9148693]
[1742411352644,0.7705,2055.4,2054.6,7.96143995]
[1742411352645,5.63576,2055.4,2054.6,7.96143995]
[1742411352849,0.1216307,2055.5,2054.8,0.7751]
[1742411353009,0.0735228,2056.4,2055.5,0.55]
[1742411353208,0.61065,2057.9,2055.5,0.55]
[1742411353209,0.9177307,2057.5,2056.4,0.7751]
[1742411353408,0.9177307,2057.5,2056.5,5.9223693]
[1742411353409,4.86073,2057.4,2056.5,5.9223693]
[1742411353740,4.86178,2056.9,2056.6,5.9223693]
[1742411353946,4.86215,2056.7,2056.6,5.9223693]
[1742411354245,0.1216307,2057.5,2056.6,7.06922732]
[1742411354404,4.86215,2056.7,2056.6,6.29412732]
[1742411354605,4.86215,2056.7,2056.6,5.9223693]
[1742411355035,4.86263,2056.5,2056.4,5.9223693]
[1742411355610,4.8631,2056.3,2056.2,5.9223693]
[1742411355939,0.1216307,2057.5,2056.3,0.7996]
[1742411356101,4.86243,2056.6,2056.3,0.7996]
[1742411356437,5.834826,2056.6,2056.3,6.06]
[1742411356639,5.61704,2057.0,2056.3,6.06]
[1742411356824,0.7554,2057.0,2056.3,6.06]
[1742411357026,4.86255,2056.6,2056.3,6.06]
[1742411357228,4.86226,2056.7,2056.3,6.06]
[1742411357229,4.86286,2056.4,2056.3,6.06]
[1742411357531,4.86266,2056.5,2056.3,6.06]
[1742411357844,4.86286,2056.4,2056.3,6.06]
[1742411358213,4.86286,2056.4,2056.0,6.063]
[1742411358214,4.86367,2056.1,2055.9,6.4313562]
[1742411358413,4.86367,2056.1,2056.0,6.06]
[1742411358618,9.72635,2056.3,2056.0,6.06]
[1742411358926,4.86311,2056.3,2056.0,6.8171]
[1742411359239,4.86311,2056.3,2056.1,6.06]
[1742411359743,4.86334,2056.2,2056.1,6.06]
[1742411359946,4.86496,2055.6,2055.4,6.06]
[1742411360145,4.86357,2056.1,2055.4,6.06]
[1742411360146,4.86369,2056.1,2055.9,0.37409589]
[1742411360318,0.972597,2056.3,2055.4,6.06]
[1742411360522,4.8643,2055.8,2055.5,6.06]
[1742411360924,4.86475,2055.6,2055.5,6.06]
[1742411361108,4.8657,2055.2,2055.1,6.06]
[1742411361309,4.86552,2055.3,2054.8,0.36979472]
[1742411361310,4.86607,2055.1,2054.8,0.36979472]
[1742411361643,4.86629,2055.0,2054.7,6.06]
[1742411361851,4.86643,2054.9,2054.7,6.06]
[1742411362055,4.86665,2054.8,2054.7,6.06]
[1742411362261,4.86692,2054.7,2054.5,6.06]
[1742411362555,0.7514,2054.8,2054.3,6.06]
[1742411362763,0.55,2055.2,2054.5,1.13101358]
[1742411362764,4.86591,2055.2,2054.5,1.13101358]
[1742411363090,6.8114,2055.4,2054.5,1.13101358]
[1742411363091,0.7514,2055.4,2054.6,6.10866493]
[1742411363221,4.8651,2055.5,2054.6,6.06]
[1742411363555,4.86524,2055.4,2054.6,6.06]
[1742411363721,4.86512,2055.5,2054.6,6.06]
[1742411363922,4.86512,2055.5,2054.7,2.34758735]
[1742411364142,4.86523,2055.4,2054.7,2.34758735]
[1742411364453,4.86634,2055.0,2054.8,6.06]
[1742411364633,4.86669,2054.8,2054.6,6.06]
[1742411364827,9.73349,2054.8,2054.6,6.06]
[1742411365055,4.86689,2054.7,2054.6,6.06]
[1742411365256,4.86669,2054.8,2054.6,6.06]
[1742411365766,9.73346,2054.8,2054.6,6.06]
[1742411365968,4.86669,2054.8,2054.6,6.06]
[1742411366147,0.8201,2055.1,2054.6,6.06]
[1742411366148,5.68608,2055.1,2054.6,6.666]
[1742411366465,4.86557,2055.3,2054.6,6.666]
[1742411366623,0.7964,2055.4,2054.7,12.9186]
[1742411366624,4.86527,2055.4,2054.7,12.9186]
[1742411366818,0.7964,2055.8,2054.7,12.9186]
[1742411366819,4.86496,2055.6,2054.7,12.9186]
[1742411367045,4.86494,2055.6,2054.8,8.43446]
[1742411367245,5.66088,2055.8,2054.8,8.43446]
[1742411367560,4.86439,2055.8,2055.0,0.8097]
[1742411367761,4.86464,2055.7,2055.0,0.8097]
[1742411368135,4.86468,2055.7,2055.0,0.8097]
[1742411368320,9.72887,2055.8,2055.1,1.70897]
[1742411368524,4.86401,2056.0,2055.2,12.16964959]
[1742411368719,3.22378958,2056.6,2055.4,0.8097]
[1742411368720,0.8104,2056.5,2055.4,0.8097]
[1742411368932,4.86369,2056.1,2055.5,6.06]
[1742411369343,4.86407,2055.9,2055.5,6.06]
[1742411369543,4.8642,2055.9,2055.6,5.737465]
[1742411369763,4.8643,2055.8,2055.6,5.737465]
[1742411369967,4.86452,2055.7,2055.6,5.737465]
[1742411370647,5.913432,2055.7,2055.6,5.737465]
[1742411370863,4.86395,2056.0,2055.6,5.737465]
[1742411371035,4.86359,2056.1,2055.6,6.505565]
[1742411371236,4.86267,2056.5,2055.7,11.797465]
[1742411371443,4.86237,2056.7,2055.8,5.78609801]
[1742411371444,4.86235,2056.7,2055.8,5.78609801]
[1742411371759,4.86268,2056.5,2055.9,10.22]
[1742411371950,4.86239,2056.6,2055.9,7.9392115]
[1742411372158,4.86226,2056.7,2056.0,0.7681]
[1742411372327,0.61065,2056.3,2056.1,5.737465]
[1742411372521,0.61065,2056.3,2056.2,6.059]
[1742411372748,5.47375,2056.3,2056.2,11.796465]
[1742411372965,1.158025,2056.3,2056.2,5.737465]
[1742411373139,6.021125,2056.3,2056.2,5.737465]
[1742411374067,0.55,2056.2,2055.5,5.737465]
[1742411374391,0.8122,2055.9,2055.2,1.17993931]
[1742411374534,4.86546,2055.3,2055.2,0.36323931]
[1742411374951,4.86569,2055.3,2055.0,5.737465]
[1742411375154,4.86534,2055.4,2055.0,6.5486575]
[1742411375327,4.86547,2055.3,2055.0,5.737465]
[1742411375532,4.86632,2055.0,2054.8,5.737465]
[1742411375739,0.7934,2055.1,2054.6,0.37178755]
[1742411375740,4.86689,2054.7,2054.6,0.37178755]
[1742411375946,4.86736,2054.5,2054.4,5.737465]
[1742411376364,4.86843,2054.1,2053.6,0.778]
[1742411376550,4.86718,2054.6,2053.7,5.737465]
[1742411376551,4.86891,2053.9,2053.7,5.737465]
[1742411376758,4.869,2053.9,2053.7,5.737465]
[1742411377065,4.86902,2053.8,2053.7,5.737465]
[1742411377470,4.8702,2053.3,2053.2,5.737465]
[1742411377669,4.8703,2053.3,2052.8,5.737465]
[1742411377834,4.87109,2053.0,2052.8,5.737465]
[1742411378037,0.55,2053.7,2052.8,5.737465]
[1742411378238,0.55,2053.5,2052.8,5.737465]
[1742411378477,4.87163,2052.7,2052.6,5.737465]
[1742411379043,4.87112,2053.0,2052.6,5.737465]
[1742411379044,4.87105,2053.0,2052.6,6.3112115]
[1742411379259,5.63383,2053.4,2052.7,6.55188249]
[1742411379575,4.87031,2053.3,2052.7,6.503165]
[1742411379778,4.8689,2053.9,2052.8,5.78617377]
[1742411379986,4.86873,2054.0,2052.9,15.957465]
[1742411380155,0.7794,2054.2,2053.1,3.7686]
[1742411380359,4.86819,2054.2,2053.3,3.0]
[1742411380682,0.7794,2054.5,2053.3,3.0]
[1742411380683,0.7794,2054.5,2053.5,3.771]
[1742411380887,4.86753,2054.5,2053.6,15.957465]
[1742411381085,4.86645,2054.9,2053.6,15.957465]
[1742411381244,4.86831,2054.1,2053.7,7.7103115]
[1742411381444,4.86871,2054.0,2053.7,11.796465]
[1742411381646,4.86902,2053.8,2053.7,5.737465]
[1742411381950,4.86902,2053.8,2053.3,11.797465]
[1742411382152,0.55,2054.3,2053.3,11.797465]
[1742411382353,4.86821,2054.2,2053.4,6.10869601]
[1742411382577,4.86833,2054.1,2053.5,1.2207679]
[1742411382880,4.86809,2054.2,2053.5,1.2207679]
[1742411383172,4.86873,2054.0,2053.4,6.06]
[1742411383583,4.86822,2054.2,2053.4,6.06]
[1742411383771,4.86872,2054.0,2053.4,6.06]
[1742411383966,4.86791,2054.3,2053.4,6.06]
[1742411384156,4.86791,2054.3,2053.4,6.10868932]
[1742411384475,9.21378958,2055.0,2053.6,3.8037]
[1742411384476,6.182395,2054.8,2053.6,3.8037]
[1742411384655,4.86836,2054.1,2053.7,5.737465]
[1742411384852,4.86798,2054.3,2053.7,5.737465]
[1742411385052,4.86783,2054.3,2053.7,5.737465]
[1742411385383,4.86843,2054.1,2053.7,5.737465]
[1742411385586,4.86799,2054.3,2053.7,6.51004304]
[1742411385887,0.829,2054.8,2053.8,5.737465]
[1742411386073,4.86694,2054.7,2053.9,11.796465]
[1742411386452,4.86712,2054.6,2053.9,12.1681082]
[1742411386648,4.86763,2054.4,2053.9,11.796465]
[1742411386853,0.829,2054.8,2054.0,1.1796465]
[1742411387183,0.829,2054.8,2054.2,0.8325]
[1742411387184,4.86676,2054.8,2054.2,0.8325]
[1742411387386,4.86622,2055.0,2054.3,5.737465]
[1742411387691,4.86723,2054.6,2054.4,5.737465]
[1742411387850,4.86736,2054.5,2054.4,5.737465]
[1742411388685,5.64276,2054.5,2054.4,5.737465]
[1742411388883,9.73699,2054.1,2053.9,5.737465]
[1742411389145,4.86848,2054.1,2053.9,5.737465]
[1742411389586,4.8676,2054.4,2053.9,5.737465]
[1742411389791,1.748859,2054.5,2053.9,5.737465]
[1742411389989,0.7754,2054.5,2053.9,6.9171115]
[1742411390193,9.73555,2054.4,2053.9,6.9171115]
[1742411390390,4.86773,2054.4,2053.9,6.9171115]
[1742411390597,4.86854,2054.0,2053.9,5.737465]
[1742411390894,4.86831,2054.1,2053.9,5.737465]
[1742411391393,4.86854,2054.0,2053.9,5.737465]
[1742411392250,4.86846,2054.1,2053.9,5.737465]
[1742411392873,4.86816,2054.2,2053.9,5.737465]
[1742411393077,4.86854,2054.0,2053.9,5.737465]
[1742411393314,4.869,2053.9,2053.7,5.737465]
[1742411393524,4.86973,2053.5,2053.4,5.737465]
[1742411394719,4.86903,2053.8,2053.4,5.737465]
[1742411395221,4.8696,2053.6,2053.4,5.737465]
[1742411395903,4.86973,2053.5,2053.4,5.737465]
[1742411396279,4.8696,2053.6,2053.4,5.737465]
[1742411396480,4.86918,2053.8,2053.4,5.737465]
[1742411396828,4.86816,2054.2,2053.6,0.7588]
[1742411396982,4.8679,2054.3,2053.7,5.737465]
[1742411397177,4.86858,2054.0,2053.7,5.737465]
[1742411397382,4.86807,2054.2,2053.7,5.737465]
[1742411397683,9.73743,2054.0,2053.7,5.737465]
[1742411397882,4.86832,2054.1,2053.7,5.737465]
[1742411398395,4.86855,2054.0,2053.7,6.9928915]
[1742411398718,4.86878,2053.9,2053.7,5.737465]
[1742411398920,4.86812,2054.2,2053.7,5.737465]
[1742411399123,4.86902,2053.8,2053.7,5.737465]
[1742411400199,4.87044,2053.2,2053.1,5.737465]
[1742411400520,0.7786,2053.7,2053.1,5.737465]
[1742411400736,4.87011,2053.4,2053.2,5.737465]
[1742411400938,4.86976,2053.5,2053.2,5.737465]
[1742411401137,4.86985,2053.5,2053.2,5.737465]
[1742411401299,4.86925,2053.8,2053.2,5.737465]
[1742411401501,0.7786,2054.0,2053.2,5.737465]
[1742411401744,4.86998,2053.4,2053.2,5.737465]
[1742411402045,4.8702,2053.3,2053.2,5.737465]
[1742411402914,4.8702,2053.3,2052.7,0.7733]
[1742411402915,4.87075,2053.1,2052.9,5.737465]
[1742411403143,4.87092,2053.0,2052.9,5.737465]
[1742411403347,3.22378958,2053.6,2052.9,6.3885415]
[1742411403348,4.87044,2053.3,2052.9,6.3885415]
[1742411403644,4.87006,2053.4,2053.0,5.737465]
[1742411403952,0.8038,2054.6,2053.2,0.8177]
[1742411404248,4.86822,2054.2,2053.4,0.8177]
[1742411404479,0.8038,2054.9,2053.6,0.8177]
[1742411404750,4.86709,2054.7,2053.8,0.8177]
[1742411404902,4.86737,2054.5,2053.9,5.78614132]
[1742411405102,9.73355,2054.8,2054.0,6.057]
[1742411405326,0.8038,2054.9,2054.1,5.737465]
[1742411405533,4.86624,2055.0,2054.1,5.737465]
[1742411405534,4.86711,2054.7,2054.2,1.9486465]
[1742411405847,0.8301,2055.2,2054.2,2.32124569]
[1742411405848,4.86678,2054.8,2054.2,2.32124569]
[1742411406046,0.8301,2055.2,2054.3,5.78613588]
[1742411406207,4.86651,2054.9,2054.4,0.81073816]
[1742411406398,4.86668,2054.8,2054.5,6.057]
[1742411406602,4.86618,2055.0,2054.6,5.737465]
[1742411406603,9.73259,2055.0,2054.6,5.737465]
[1742411406803,4.86608,2055.1,2054.7,5.737465]
[1742411407226,4.86576,2055.2,2054.8,6.526465]
[1742411407443,4.86576,2055.2,2054.8,7.1791115]
[1742411407611,4.8662,2055.0,2054.8,5.737465]
[1742411407815,4.86641,2054.9,2054.8,5.737465]
[1742411409298,0.8275,2054.9,2054.4,5.76857044]
[1742411409502,0.8275,2055.2,2054.4,5.76857044]
[1742411409726,9.73448,2054.6,2054.4,5.76857044]
[1742411410032,9.73365,2054.8,2054.4,5.76857044]
[1742411410199,0.8275,2055.2,2054.4,5.76857044]
[1742411410403,4.86736,2054.5,2054.4,5.76857044]
[1742411410800,4.86736,2054.5,2054.4,0.03110544]
[1742411410999,6.402555,2054.5,2054.4,0.03110544]
[1742411411645,4.86728,2054.6,2054.4,0.03110544]
[1742411411813,4.86736,2054.5,2054.4,0.03110544]
[1742411412254,4.91607709,2054.5,2054.4,0.03110544]
[1742411412460,4.86736,2054.5,2054.4,0.03110544]
[1742411413136,4.86728,2054.6,2054.4,0.03110544]
[1742411413338,4.86608,2055.1,2054.5,11.791465]
[1742411413567,4.86641,2054.9,2054.6,6.91972204]
[1742411413778,4.86614,2055.1,2054.6,6.91972204]
[1742411413990,4.86642,2054.9,2054.6,6.91972204]
[1742411414282,4.86621,2055.0,2054.6,5.737465]
[1742411414478,0.8191,2055.6,2054.4,10.25110544]
[1742411414479,4.86666,2054.8,2054.7,5.737465]
[1742411414686,0.7507,2055.1,2054.7,5.737465]
[1742411414984,4.86639,2055.0,2054.8,5.737465]
[1742411415158,4.86641,2054.9,2054.8,5.737465]
[1742411415365,4.86639,2055.0,2054.8,5.737465]
[1742411415551,4.86641,2054.9,2054.8,5.737465]
[1742411415951,4.86595,2055.1,2054.8,5.737465]
[1742411416151,4.86501,2055.5,2054.8,5.737465]
[1742411416152,0.8167,2055.7,2054.9,12.64982709]
[1742411416455,4.86463,2055.7,2055.0,5.737465]
[1742411416652,6.021125,2056.3,2055.2,0.8318]
[1742411416887,4.86492,2055.6,2055.3,5.737465]
[1742411417047,4.86509,2055.5,2055.4,5.737465]
[1742411417252,4.86452,2055.7,2055.4,5.737465]
[1742411417546,4.86465,2055.7,2055.4,12.4463915]
[1742411417747,4.86415,2055.9,2055.4,12.4463915]
[1742411417975,0.61065,2056.3,2055.5,5.737465]
[1742411418183,0.61065,2056.3,2055.6,6.569265]
[1742411418384,4.86346,2056.2,2055.6,6.569265]
[1742411418583,4.86346,2056.2,2055.7,1.6789265]
[1742411418787,5.47386,2056.3,2055.8,5.737465]
[1742411418788,5.47379,2056.3,2055.8,5.737465]
[1742411418969,4.86352,2056.2,2055.8,5.737465]
[1742411419350,8.75139986,2056.2,2055.8,5.737465]
[1742411419570,3.88782986,2056.2,2055.8,5.737465]
[1742411419790,0.61065,2056.3,2055.9,5.78610287]
[1742411419996,5.47379,2056.3,2056.0,1.95471029]
[1742411420197,0.61065,2056.3,2056.1,5.737465]
[1742411420552,5.47388,2056.3,2056.1,6.10517835]
[1742411420760,4.86334,2056.2,2056.1,5.737465]
[1742411420990,0.61065,2056.3,2056.1,5.737465]
[1742411421295,5.47377,2056.3,2056.0,0.771]
[1742411421794,5.47378,2056.3,2056.0,1.13107397]
[1742411422480,0.61065,2056.3,2056.0,1.13107397]
[1742411422685,0.61065,2056.3,2056.0,2.42302787]
[1742411423061,5.4739,2056.3,2056.0,2.42302787]
[1742411423301,5.4739,2056.3,2056.0,1.13107397]
[1742411423610,4.86357,2056.1,2055.9,5.737465]
[1742411423770,4.86381,2056.0,2055.9,5.737465]
[1742411424172,4.86452,2055.7,2055.6,5.737465]
[1742411425610,5.63552,2055.7,2055.3,8.048]
[1742411425951,5.63552,2055.7,2055.3,2.0]
[1742411425952,4.86523,2055.4,2055.3,2.0]
[1742411427909,4.86506,2055.5,2055.3,2.0]
[1742411428106,4.86476,2055.6,2055.4,5.737465]
[1742411428402,4.86499,2055.5,2055.4,5.737465]
[1742411428791,5.69763,2055.4,2055.3,2.0]
[1742411428974,4.86523,2055.4,2055.3,2.0]
[1742411429366,4.86594,2055.1,2054.7,5.737465]
[1742411429571,4.86648,2054.9,2054.8,0.36140439]
[1742411429771,4.86631,2055.0,2054.7,5.737465]
[1742411430004,4.86631,2055.0,2054.7,6.48647975]
[1742411430466,4.8661,2055.1,2054.7,6.48647975]
[1742411430676,4.86645,2054.9,2054.7,6.48647975]
[1742411430872,4.86645,2054.9,2054.8,5.737465]
[1742411431075,4.86645,2054.9,2054.8,6.10570282]
[1742411431708,4.86645,2054.9,2054.8,0.36823782]
[1742411431898,4.86736,2054.5,2054.4,0.03110544]
[1742411432071,5.840815,2054.5,2054.4,0.03110544]
[1742411432272,5.840815,2054.5,2054.4,5.44e-06]
[1742411432672,6.74693616,2054.5,2054.4,5.44e-06]
[1742411432910,13.56944283,2054.5,2054.4,5.44e-06]
[1742411433077,13.52072574,2054.5,2054.4,5.44e-06]
[1742411433274,9.74693616,2054.5,2054.4,5.44e-06]
[1742411434374,5.77348116,2054.5,2054.4,5.44e-06]
[1742411434937,4.94998116,2054.5,2054.4,5.44e-06]
[1742411435088,0.08262116,2054.5,2054.4,5.44e-06]
[1742411435289,4.94998116,2054.5,2054.4,5.44e-06]
[1742411435487,4.86792,2054.3,2054.1,5.73647044]
[1742411435702,4.86792,2054.3,2054.2,5.73647044]
[1742411436015,4.86792,2054.3,2053.7,5.73647044]
[1742411436016,4.86857,2054.0,2053.7,5.73647044]
[1742411436215,4.86809,2054.2,2053.7,5.73647044]
[1742411436380,0.07561417,2053.9,2053.7,5.73647044]
[1742411436576,4.86856,2054.0,2053.7,5.73647044]
[1742411436781,0.07556734,2053.9,2053.7,5.73647044]
[1742411437094,0.07556734,2053.9,2053.7,6.99605748]
[1742411437294,4.86776,2054.4,2053.7,6.99605748]
[1742411437547,0.07528949,2053.8,2053.7,6.99605748]
[1742411437695,4.86861,2054.0,2053.7,6.99605748]
[1742411437895,4.86861,2054.0,2053.8,5.73647044]
[1742411438236,4.8676,2054.4,2053.8,5.73647044]
[1742411438237,4.86786,2054.3,2053.8,5.73647044]
[1742411438415,0.8327,2054.7,2053.8,5.73647044]
[1742411438416,4.86736,2054.5,2053.8,5.73647044]
[1742411438736,0.8327,2054.7,2053.8,5.73647044]
[1742411439029,4.86814,2054.2,2053.8,5.73647044]
[1742411439245,4.86845,2054.1,2053.8,6.39135748]
[1742411439397,4.86878,2053.9,2053.8,5.73647044]
[1742411439593,4.86973,2053.5,2053.4,5.73647044]
[1742411439798,4.87044,2053.2,2053.1,5.73647044]
[1742411443031,4.87026,2053.3,2052.7,5.73647044]